{"text_format":"3","workbook":"xlsx","n_sheets":4,"sheets":["Hhbel volle €","Jahressonderzahlung","Werte","Hinzurechnungsbetrag VBL"],"not_rendered":{"defined_names":13,"comments":2},"read":"whole","date_system":"1900"}

{"sheet":"Hhbel volle €","index":0,"n_rows":22,"n_cols":4,"rows_kept":22,"merged":[[0,0,0,3],[1,0,1,3],[6,0,6,3],[19,0,19,3]]}
["Hilfestellung für überschlagsweise Berechnung der Haushaltsbelastung im Jahr 2023"]
["Bitte die Daten in den gelb gekennzeichneten Feldern eintragen."]
["EG, Stufe",null,null,"S 4 / S 8a / S 8b"]
["Tabellenentgelt Vollzeit",null,null,"Entgelttabelle SuE - Anlage G zum TV-L"]
["wöchentl. Arbeitszeit",null,null,"Brutto mit (einschl.) 1/12 Jahressonderzahlung (JSZ) "]
["Brutto (monatlich)",{"$f":"ROUNDUP((B4*B5/39.8),0)","v":{"v":0,"d":"0.00 €"}},null,{"$f":"ROUNDUP(($B$6*JSZ)+B6+Werte!D13,0)","v":{"v":0,"d":"0.00 €"}}]
["HINWEIS: Diese Tabelle soll nur eine Hilfestellung zur Budgetberechnung darstellen. Die unten aufgeführten Ergebnisse sind Durchschnittswerte aufgrund der erfassten Beträge. Ob tatsächlich eine geringfügig entlohnte Tätigkeit vorliegt oder der Übungsleiterfreibetrag (ÜL-FB) in der angegebenen Höhe zu berücksichtigen ist, kann nur im Einzelfall genau beurteilt werden.   Faustregel: Bei einem mtl. \"SV-Brutto\" (= Brutto -  ggf. mit 1/12 JSZ - aus Zeile 6 (Wert aus B6 oder D6) - ggf. abzüglich mtl. zustehender ÜL-FB) von maximal 520 Euro mtl. kann - annähernd (schätzungsweise) - von einem Minijob ausgegangen werden."]
["Durchschnitt Haushaltsbelastung   m o n a t l i c h"]
["mit Übungsleiterfreibetrag (ÜL-FB)","ohne JSZ",null,"mit 1/12 JSZ"]
["geringfügig entlohnt mit SV-Pauschalen",{"$f":"IF((B6+Werte!D13)<Übungsleiterfreibetrag,ROUNDUP((B6+Werte!D13),0),ROUNDUP((((B6+Werte!D13-Übungsleiterfreibetrag)*HhbelGfB)+Übungsleiterfreibetrag),0))","v":{"v":0,"d":"0.00 €"}},null,{"$f":"ROUNDUP(IF(Werte!D11<Übungsleiterfreibetrag,Werte!D11,((Werte!D11-Übungsleiterfreibetrag)*HhbelGfB)+Übungsleiterfreibetrag),0)","v":{"v":0,"d":"0.00 €"}}]
["volle SV-Pflicht",{"$f":"IF((B6+Werte!D14)<Übungsleiterfreibetrag,ROUNDUP((B6+Werte!D14),0),ROUNDUP(((B6+Werte!D14-Übungsleiterfreibetrag)*HhbelVPfl)+Übungsleiterfreibetrag,0))","v":{"v":0,"d":"0.00 €"}},null,{"$f":"ROUNDUP(IF(Werte!D11<200,Werte!D11,((Werte!D11-200)*HhbelVPfl)+Übungsleiterfreibetrag),0)","v":{"v":0,"d":"0.00 €"}}]
["ohne Übungsleiterfreibetrag (ÜL-FB)"]
["geringfügig entlohnt mit SV-Pauschalen",{"$f":"ROUNDUP(((B6+Werte!D13)*HhbelGfB),0)","v":{"v":0,"d":"0.00 €"}},null,{"$f":"ROUNDUP(Werte!D11*HhbelGfB,0)","v":{"v":0,"d":"0.00 €"}}]
["volle SV-Pflicht",{"$f":"ROUNDUP(((B6+Werte!D13)*HhbelVPfl),0)","v":{"v":0,"d":"0.00 €"}},null,{"$f":"ROUNDUP(Werte!D11*HhbelVPfl,0)","v":{"v":0,"d":"0.00 €"}}]
["geringfügig entlohnt - nur RV- , keine KV-Pauschalen"]
["geringfügig entlohnt ohne ÜL-FB",{"$f":"ROUNDUP(((B6+Werte!D13)*PauschoKK),0)","v":{"v":0,"d":"0.00 €"}},null,{"$f":"ROUNDUP(Werte!D11*PauschoKK,0)","v":{"v":0,"d":"0.00 €"}}]
["geringfügig entlohnt mit ÜL-FB",{"$f":"IF($B$6<Übungsleiterfreibetrag,$B$6,ROUNDUP((($B$6-Übungsleiterfreibetrag)+Werte!D13)*127%,0)+Übungsleiterfreibetrag)","v":{"v":0,"d":"0.00 €"}},null,{"$f":"IF(Werte!D11<Übungsleiterfreibetrag,Werte!D11,ROUNDUP((Werte!D11-200)*PauschoKK,0)+175)","v":{"v":0,"d":"0.00 €"}}]
[]
[]
["Haushaltsbelastung für volle Jahressonderzahlung (12/12); nur im November zur laufenden Haushaltsbelastung ohne JSZ addieren, wenn Beschäftigung am 01.12. des Jahres und seit Januar durchgehend besteht. "]
["geringfügig entlohnt mit SV-Pauschalen",{"$f":"ROUNDUP((B6*95%)*HhbelGfB,0)","v":{"v":0,"d":"0.00 €"}}]
["volle SV-Pflicht",{"$f":"ROUNDUP((B6*95%)*HhbelVPfl,0)","v":{"v":0,"d":"0.00 €"}}]

{"sheet":"Jahressonderzahlung","index":1,"n_rows":9,"n_cols":4,"rows_kept":9,"merged":[[2,1,2,3],[4,1,4,3]]}
[]
[]
[null,"Jahressonderzahlung"]
[null,"Entgeltgruppe",2020,"2021-2023"]
[]
[null,"S 2 und S 3",{"v":0.8891,"d":"88.91%"},{"v":0.8743,"d":"87.43%"}]
[null,"S 4 bis S 8b",{"v":0.894,"d":"89.40%"},{"v":0.8814,"d":"88.14%"}]
[null,"S 9 bis S 17",{"v":0.7531,"d":"75.31%"},{"v":0.7435,"d":"74.35%"}]
[null,"S 18",{"v":0.4707,"d":"47.07%"},{"v":0.4647,"d":"46.47%"}]

{"sheet":"Werte","index":2,"n_rows":13,"n_cols":5,"rows_kept":13}
[]
["Haushaltsbelastung geringf.",null,null,{"v":1.37,"d":"137%"}]
["Haushaltsbelastung vers.pfl.",null,null,{"v":1.3,"d":"130%"}]
[]
["Pauschalen ohne GKV",null,null,{"v":1.24,"d":"124%"}]
[]
["Übungsleiterfreibetrag",null,null,{"v":352.5,"d":"352.50 €"},{"v":4230,"d":"4,230 €"}]
[]
["1/12 JSZ",null,null,{"v":0.07345,"d":"7.345%"}," (1/12 x 88,14% x 100)"]
[]
["Entgelt + JSZ+ Hinzurechnung",null,null,{"$f":"ROUNDUP(('Hhbel volle €'!B6*JSZ)+('Hhbel volle €'!B6+D13),0)","v":{"v":0,"d":"0.00 €"}}]
[]
["Hinzurechnungsbetrag",null,null,{"$f":"'Hinzurechnungsbetrag VBL'!D36","v":{"v":0,"d":"0.00 €"}}]

{"sheet":"Hinzurechnungsbetrag VBL","index":3,"n_rows":38,"n_cols":4,"rows_kept":38,"hidden":true,"merged":[[0,0,0,3],[1,1,1,2],[10,1,10,2],[17,1,17,2],[26,1,26,2],[37,1,37,2]]}
["SV-Pflicht für ZV (VBL-West) für 2023                                                                        gem. SV-Entgeltverordnung (SvEV) - Standard: Verteilmodell"]
[{"$nulls":3},"ohne EGU"]
[null,"Grundlagen"]
[null,null,"Entgeltumwandlung (max. steuerrechtlicher Höchstbetrag - § 3 Nr. 63 EStG)"]
[null,null,"ZV-(VBL-)pflichtiges Entgelt",{"$f":"'Hhbel volle €'!B6","v":{"v":0,"d":"0.00 €"}}]
[]
[null,null,"Umlage (insgesamt 7,30%)",{"$f":"ROUND(SUM(D5*7.3%),2)","v":{"v":0,"d":"0.00 €"}}]
[null,null,"AG-Anteil",{"$f":"ROUND(SUM(D5*5.49%),2)","v":{"v":0,"d":"0.00 €"}}]
[null,null,"AN-Anteil",{"$f":"ROUND(SUM(D5*1.81%),2)","v":{"v":0,"d":"0.00 €"}}]
[]
[null,"Ermittlung eines von vornherein steuer- und beitragspflichtigen Anteils:"]
[null,null,"Umlage AG-Anteil",{"$f":"D8","v":{"v":0,"d":"0.00 €"}}]
[null,null,"./. Steuerfreier Anteil nach § 3 Nr. 56 EStG",{"$f":"ROUND(IF(D8>219,219,D8),2)","v":{"v":0,"d":"0.00 €"}}]
[null,null,"./. Pauschal zu versteuernder Anteil",{"$f":"(ROUND(IF(D8-D13>92.03,92.03,D8-D13),2))","v":{"v":0,"d":"0.00 €"}}]
[]
[null,null,"indiv. steuerpfl u. beitragspfl. Anteil",{"$f":"D12-D13-D14","v":{"v":0,"d":"0.00 €"}}]
[]
[null,"Ermittlung des beitragspfl. Anteils der Umlage nach § 1 Abs.1 S. 4 i. V. mit Abs. 1 S. 3 und Abs. 1 S. 1 Nr. 4a SvEV "]
[null,null,"Steuerfreier Anteil nach § 3 Nr. 56 EStG",{"$f":"D13","v":{"v":0,"d":"0.00 €"}}]
[null,null,"zuz. Pauschal zu versteuernder Anteil",{"$f":"D14","v":{"v":0,"d":"0.00 €"}}]
[null,null,"Zwischensumme",{"$f":"SUM(D19:D20)","v":{"v":0,"d":"0.00 €"}}]
[]
[null,null,"zu berücksichtigender Betrag nach § 1 Abs. 1 Satz 3 SvEV",{"$f":"IF(D21>100,100,D21)","v":{"v":0,"d":"0.00 €"}}]
[]
[null,null,"Beitragspflichtige Einnahme nach § 1 Abs. 1 Satz 4 SvEV",{"$f":"SUM(D21-D23)","v":{"v":0,"d":"0.00 €"}}]
[]
[null,"Ermittlung des beitragspflichtigen Hinzurechnungsbetrags § 1 Abs. 1 S. 3 SvEV"]
[null,null,"Höchstbetrag 100:5,49x100) = 1821,49€x2,5 v.H.                      ",{"$f":"SUM(D23/5.49*100*0.025)","v":{"v":0,"d":"0.00 €"}}]
[null,null,"./.                                                                        13,30 €",{"$f":"IF(D28>13.3,D28-13.3,0)","v":{"v":0,"d":"0.00 €"}}]
[]
[null,null,"Beitragspflichtiges Arbeitsentgelt insgesamt",{"$f":"D5","v":{"v":0,"d":"0.00 €"}}]
[null,null,"individuell steuer- und beitragspflichtiger Anteil",{"$f":"D16","v":{"v":0,"d":"0.00 €"}}]
[null,null,"Anteil, der d. Grenzbetrag nach § 1 Abs. 1 S. 4 SvEV übersteigt",{"$f":"D25","v":{"v":0,"d":"0.00 €"}}]
[null,null,"Hinzurechnungsbetrag nach § 1 Abs. 1 S. 3 SvEV",{"$f":"D29","v":{"v":0,"d":"0.00 €"}}]
[]
[null,null,"Hinzurechnungsbetrag insgesamt ",{"$f":"SUM(D32:D34)","v":{"v":0,"d":"0.00 €"}}]
[]
[null,"Sozialversicherungspflichtiges Entgelt",null,{"$f":"SUM(D31+D36)","v":{"v":0,"d":"0.00 €"}}]